bitfinex-derivatives/quotes_SOLF0:USTF0_20260203
["timestamp","ask_amount","ask_price","bid_price","bid_amount"]
[1770150493841,160.48917847,100.22,100.13,2.49863588]
[1770150494042,160.48917847,100.22,100.12,8.9992]
[1770150494338,139.868,100.21,100.13,2.49865809]
[1770150494534,139.868,100.21,100.12,8.9992]
[1770150494740,139.868,100.21,100.1,140.0138]
[1770150495038,8.9925,100.2,100.11,142.50343704]
[1770150495237,160.48917847,100.22,100.13,8.9983]
[1770150495432,139.8305,100.24,100.14,2.49883704]
[1770150495632,160.46567847,100.24,100.15,2.49816301]
[1770150495841,160.46567847,100.24,100.14,139.9632]
[1770150496041,20.63517847,100.24,100.15,2.49824049]
[1770150496242,20.63517847,100.24,100.16,2.49824049]
[1770150496442,20.63517847,100.24,100.17,2.49824049]
[1770150496639,20.63517847,100.24,100.15,139.9475]
[1770150496838,20.63517847,100.24,100.16,2.49774837]
[1770150497041,139.9006,100.19,100.09,140.0247]
[1770150497245,139.864,100.22,100.11,139.9985]
[1770150497439,139.8535,100.22,100.12,139.9928]
[1770150497640,139.8535,100.22,100.12,8.9988]
[1770150497641,20.63517847,100.2,100.12,8.9988]
[1770150498440,20.63517847,100.2,100.09,140.0337]
[1770150498441,139.8956,100.19,100.09,140.0337]
[1770150499050,160.50277847,100.21,100.1,140.0162]
[1770150499344,20.63517847,100.18,100.08,140.0371]
[1770150499549,29.62967847,100.18,100.09,149.036]
[1770150499846,29.62967847,100.18,100.09,9.0017]
[1770150500048,20.63517847,100.18,100.09,140.03]
[1770150500550,160.54727847,100.18,100.07,140.0625]
[1770150500949,20.63517847,100.18,100.09,140.033]
[1770150501142,20.63517847,100.18,100.1,140.0198]
[1770150501347,398.64,100.2,100.12,139.9928]
[1770150501549,398.64,100.2,100.11,140.0068]
[1770150501850,139.8532,100.22,100.13,8.9981]
[1770150502146,139.8532,100.22,100.11,140.0068]
[1770150502345,160.48817847,100.23,100.08,140.0351]
[1770150502346,20.63517847,100.17,100.08,140.0351]
[1770150502847,20.63517847,100.14,100.07,140.0624]
[1770150503051,20.63517847,100.14,100.03,140.1064]
[1770150503052,160.60117847,100.14,100.03,140.1064]
[1770150503252,20.63517847,100.11,100.02,149.1267]
[1770150503551,20.63517847,100.11,100.03,140.1182]
[1770150503844,169.60327847,100.14,100.04,149.111]
[1770150504047,160.60577847,100.14,100.03,140.1182]
[1770150504251,20.63517847,100.14,100.05,140.0871]
[1770150504449,20.63517847,100.14,100.06,140.0755]
[1770150504953,20.63517847,100.14,100.06,9.0044]
[1770150505748,20.63517847,100.14,100.03,140.1187]
[1770150505749,20.63517847,100.11,100.03,140.1187]
[1770150505950,160.60567847,100.14,100.04,140.1039]
[1770150506249,568.22617847,100.17,100.06,149.08]
[1770150506449,568.22617847,100.17,100.04,140.1039]
[1770150506450,20.63517847,100.14,100.04,140.1039]
[1770150507044,148.9489,100.15,100.05,149.0943]
[1770150507243,169.58407847,100.15,100.05,149.0943]
[1770150507449,29.63237847,100.15,100.05,149.0943]
[1770150508548,169.58437847,100.15,100.05,149.0943]
[1770150508948,29.63237847,100.15,100.06,149.0805]
[1770150509144,398.7,100.16,100.07,142.56084576]
[1770150509349,398.7,100.16,100.08,2.49994576]
[1770150509547,398.7,100.16,100.09,2.49994576]
[1770150509742,398.7,100.16,100.07,9.0032]
[1770150509949,398.7,100.16,100.08,2.49958765]
[1770150510149,398.7,100.16,100.09,2.49958765]
[1770150510349,160.58917847,100.15,100.05,149.0941]
[1770150510550,559.27637847,100.16,100.06,2.49982694]
[1770150510755,419.33517847,100.16,100.07,282.61032694]
[1770150511050,139.8919,100.2,100.1,140.0184]
[1770150511051,20.63517847,100.19,100.1,140.0184]
[1770150511257,20.63517847,100.19,100.11,2.49916963]
[1770150511451,20.63517847,100.19,100.12,2.49916963]
[1770150511646,20.63517847,100.19,100.08,140.0474]
[1770150511647,160.53147847,100.19,100.13,2.49916963]
[1770150511849,139.9241,100.17,100.07,140.0526]
[1770150512053,139.913,100.18,100.08,142.54702708]
[1770150512248,8.9952,100.17,100.09,11.50132708]
[1770150512452,8.9952,100.17,100.1,2.49932708]
[1770150512846,8.9962,100.16,100.1,2.49932708]
[1770150513050,8.9962,100.16,100.11,2.49932708]
[1770150513254,8.9962,100.16,100.07,140.0626]
[1770150513453,139.8975,100.19,100.09,140.0292]
[1770150513648,20.63517847,100.17,100.1,2.49950016]
[1770150513952,8.9972,100.15,100.07,9.0039]
[1770150514157,8.9972,100.15,100.08,2.49969163]
[1770150514455,20.63517847,100.17,100.09,2.49969163]
[1770150514754,29.63057847,100.17,100.1,2.49969163]
[1770150514953,29.63057847,100.17,100.11,2.49969163]
[1770150515153,29.63057847,100.17,100.08,149.0478]
[1770150515346,8.9963,100.16,100.09,2.49931262]
[1770150515551,139.9379,100.16,100.1,2.49931262]
[1770150515748,160.55917847,100.17,100.11,2.49931262]
[1770150515960,160.55917847,100.17,100.07,9.0035]
[1770150516150,160.55917847,100.17,100.06,140.0764]
[1770150516356,29.63087847,100.17,100.09,9.0019]
[1770150516655,160.55947847,100.17,100.06,140.0764]
[1770150516860,160.55947847,100.17,100.08,9.0031]
[1770150517461,8.996,100.16,100.09,9.002]
[1770150517754,139.9386,100.16,100.06,140.0764]
[1770150518358,8.9969,100.15,100.08,9.0031]
[1770150518659,139.9386,100.16,100.05,140.0827]
[1770150518849,8.9987,100.13,100.06,9.0045]
[1770150519253,20.63517847,100.11,100.01,140.1329]
[1770150519458,160.64587847,100.11,100.01,140.1329]
[1770150519660,140.0213,100.1,99.998,140.1631]
[1770150520152,160.64587847,100.11,100.02,9.0084]
[1770150520350,20.63517847,100.11,100.02,140.1319]
[1770150520555,8.9995,100.12,100.05,9.0058]
[1770150520760,160.60077847,100.14,100.03,140.1187]
[1770150521056,20.63517847,100.14,100.04,140.1045]
[1770150521261,160.60037847,100.14,100.03,140.1187]
[1770150521555,139.9934,100.12,100.02,140.1319]
[1770150521761,9.0003,100.12,100.02,140.1319]
[1770150521961,139.9654,100.14,100.04,140.0985]
[1770150522157,160.59187847,100.15,100.05,140.0886]
[1770150522357,8.30595105,100.13,100.05,140.0886]
[1770150522961,148.28485105,100.13,100.05,9.005]
[1770150523260,8.30595105,100.11,100.05,9.005]
[1770150523757,139.9567,100.15,100.03,140.1157]
[1770150523950,8.30595105,100.14,100.07,9.0039]
[1770150524654,8.30595105,100.12,100.06,9.0042]
[1770150524960,139.9662,100.14,100.03,140.1157]
[1770150524961,8.30595105,100.1,100.03,140.1157]
[1770150525161,8.30595105,100.1,100.02,140.1322]
[1770150525357,17.30725105,100.1,100.03,9.0073]
[1770150525755,8.30595105,100.1,100.01,140.1399]
[1770150525958,8.30595105,100.1,100.0,359.95271428]
[1770150525959,8.30595105,100.08,100.0,140.1471]
[1770150526258,8.30595105,100.08,100.02,9.0085]
[1770150527363,8.30595105,100.08,100.03,9.0075]
[1770150527759,17.30725105,100.1,100.03,9.0075]
[1770150527957,17.30725105,100.1,100.04,2.50082774]
[1770150528255,17.30725105,100.1,100.0,140.1471]
[1770150528256,8.30595105,100.06,100.0,140.1588]
[1770150528451,8.30595105,100.1,100.02,140.1303]
[1770150529357,17.30735105,100.1,100.03,9.0075]
[1770150530460,148.32875105,100.1,100.02,9.0084]
[1770150530662,8.30595105,100.08,100.02,9.0084]
[1770150530955,8.30595105,100.08,99.979,140.1894]
[1770150530956,8.30595105,100.06,100.01,9.0093]
[1770150531154,8.30595105,100.06,99.989,140.176]
[1770150531362,8.30595105,100.06,99.984,140.182]
[1770150532060,8.30595105,100.06,99.994,140.1692]
[1770150532256,8.30595105,100.06,100.0,140.1577]
[1770150532458,8.30595105,100.06,99.984,140.183]
[1770150532652,8.30595105,100.06,100.01,9.0094]
[1770150532852,8.30595105,100.06,100.0,140.1565]
[1770150533052,17.30905105,100.08,100.0,9.0094]
[1770150533257,8.30595105,100.06,100.0,9.0094]
[1770150533460,8.30595105,100.04,99.976,140.1941]
[1770150533664,8.30595105,100.05,99.999,9.0104]
[1770150533964,8.30595105,100.05,99.996,140.1655]
[1770150534156,8.30595105,100.07,99.996,140.1655]
[1770150534360,8.30595105,100.07,100.0,140.1602]
[1770150535258,8.30595105,100.07,99.983,140.1846]
[1770150535462,8.30595105,100.07,99.985,140.1815]
[1770150535664,8.30595105,100.07,100.0,9.0094]
[1770150535867,8.30595105,100.05,100.0,9.0094]
[1770150536062,8.30595105,100.05,99.991,140.1728]
[1770150536264,8.30595105,100.07,100.01,9.0094]
[1770150536465,8.30595105,100.09,100.02,140.1317]
[1770150536965,8.30595105,100.09,100.01,140.1459]
[1770150537167,8.30595105,100.09,100.03,140.1137]
[1770150537471,8.30595105,100.09,100.02,280.26]
[1770150538664,8.30595105,100.09,100.03,9.0076]
[1770150538865,8.30595105,100.09,100.02,140.128]
[1770150539167,8.30595105,100.09,100.01,140.1459]
[1770150539362,8.30595105,100.07,100.0,140.1487]
[1770150539766,8.30595105,100.07,100.01,9.0087]
[1770150540364,8.30595105,100.05,99.946,140.2355]
[1770150540567,8.30595105,100.01,99.948,140.2331]
[1770150540770,8.30595105,100.03,99.98,9.0121]
[1770150540965,8.30595105,100.03,99.954,140.2242]
[1770150541161,8.30595105,100.01,99.934,140.2523]
[1770150541361,8.30595105,100.01,99.893,18.0398]
[1770150541362,8.30595105,100.01,99.918,140.2757]
[1770150541561,8.30595105,100.01,99.945,140.2374]
[1770150541767,8.30595105,99.99,99.92,140.2724]
[1770150541967,8.30595105,100.01,99.938,140.2468]
[1770150542274,8.30595105,100.01,99.957,140.221]
[1770150542565,8.30595105,100.06,99.988,140.1767]
[1770150542763,148.35715105,100.08,99.972,140.1997]
[1770150542961,148.35715105,100.08,99.948,399.0]
[1770150542962,17.31115105,100.06,99.988,9.0113]
[1770150543371,17.31115105,100.06,99.984,140.1821]
[1770150543571,8.30595105,100.08,100.01,140.1436]
[1770150543870,8.30595105,100.08,100.0,140.1608]
[1770150544073,17.30915105,100.08,100.02,9.0084]
[1770150544764,9.004,100.07,100.0,9.0094]
[1770150545068,8.30595105,100.08,99.997,140.165]
[1770150546069,8.30595105,100.08,99.98,140.1887]
[1770150546274,8.30595105,100.04,99.974,140.1972]
[1770150546468,8.30595105,100.04,99.951,140.2291]
[1770150546674,17.31325105,100.04,99.964,9.0135]
[1770150547074,17.31325105,100.04,99.957,140.2207]
[1770150547275,8.30595105,100.04,99.985,9.0116]
[1770150547474,8.30595105,100.04,99.947,140.2347]
[1770150547475,148.41095105,100.04,99.947,140.2347]
[1770150547768,8.30595105,100.04,99.97,140.2021]
[1770150547972,8.30595105,100.07,99.982,140.1851]
[1770150548270,8.30595105,100.07,99.988,140.1774]
[1770150549075,8.30595105,100.07,100.0,140.16]
[1770150549373,8.30595105,100.07,99.99,140.174]
[1770150549567,8.30595105,100.07,100.01,9.0094]
[1770150549763,539.0799,100.11,100.01,9.0094]
[1770150549764,8.30595105,100.09,100.02,140.1326]
[1770150549970,407.36595105,100.11,100.02,140.1326]
[1770150550773,407.36595105,100.11,100.04,9.0067]
[1770150551672,9.0013,100.1,100.04,9.0067]
[1770150552468,8.30595105,100.11,100.05,11.50616674]
[1770150552674,8.30595105,100.11,100.06,2.50056674]
[1770150552872,8.30595105,100.11,100.07,2.50056674]
[1770150553073,8.30595105,100.11,100.02,140.1326]
[1770150553473,8.30595105,100.09,100.01,140.1462]
[1770150554071,17.30845105,100.09,100.03,9.0073]
[1770150554273,8.30595105,100.07,99.99,140.1737]
[1770150554471,8.30595105,100.05,99.972,140.1998]
[1770150554780,8.30595105,100.05,99.989,9.0112]
[1770150554973,8.30595105,100.05,99.963,140.2125]
[1770150555175,9.0013,100.11,100.02,140.1304]
[1770150555375,139.9906,100.13,100.03,140.117]
[1770150555376,139.9789,100.13,100.03,140.117]
[1770150555677,8.30595105,100.12,100.02,140.1304]
[1770150555877,9.0016,100.1,100.04,9.0065]
[1770150556472,9.0016,100.1,100.01,140.143]
[1770150556473,17.30755105,100.1,100.01,140.143]
[1770150556672,17.30755105,100.1,100.0,140.1475]
[1770150556673,148.32735105,100.1,100.0,140.1475]
[1770150556985,8.30595105,100.1,100.01,140.1468]
[1770150557181,148.33035105,100.1,100.01,9.0086]
[1770150557382,148.33035105,100.1,100.0,140.1475]
[1770150557781,140.0244,100.1,100.0,148.45345105]
[1770150558678,9.0033,100.08,100.02,9.0082]
[1770150559481,9.0018,100.1,100.03,9.0073]
[1770150559681,140.0146,100.11,100.03,9.0073]
[1770150559882,140.0146,100.11,100.0,148.45345105]
[1770150559883,140.021,100.1,100.0,148.45345105]
[1770150560785,9.0032,100.08,100.02,9.0084]
[1770150561280,9.0048,100.07,99.977,140.1923]
[1770150561487,148.32695105,100.1,99.999,140.162]
[1770150561785,9.0032,100.08,100.02,9.0083]
[1770150562088,140.0146,100.11,100.01,140.1452]
[1770150562582,140.0146,100.11,100.03,9.0075]
[1770150563083,140.0146,100.11,100.02,9.0084]
[1770150563084,140.0221,100.1,100.02,9.0084]
[1770150563283,140.0146,100.11,100.02,9.0084]
[1770150563486,140.0216,100.1,100.02,9.0084]
[1770150563685,155.63084513,100.12,100.03,9.0075]
[1770150563886,140.0073,100.11,100.0,140.1578]
[1770150564681,9.0022,100.09,100.02,9.0084]
[1770150565189,148.32685105,100.1,100.03,2.50098772]
[1770150565377,148.32685105,100.1,100.04,2.50098772]
[1770150565576,148.32685105,100.1,100.05,2.50098772]
[1770150565778,140.0352,100.09,99.99,8.30595105]
[1770150566183,9.0033,100.08,100.02,9.0084]
[1770150566581,8.30595105,100.12,100.02,140.1269]
[1770150566787,139.9807,100.13,100.03,140.1171]
[1770150567082,139.9777,100.14,100.04,140.1039]
[1770150567584,139.9795,100.13,100.03,140.1171]
[1770150568890,539.0243,100.15,100.05,140.0902]
[1770150569085,539.0243,100.15,100.06,140.0701]
[1770150569086,399.06,100.15,100.06,140.0701]
[1770150569789,399.06,100.15,100.07,148.36715105]
[1770150570083,148.22635105,100.18,100.07,148.36715105]
[1770150570286,8.9961,100.16,100.09,9.0019]
[1770150571983,139.9373,100.16,100.06,140.0701]
[1770150572185,139.9373,100.16,100.05,148.39615105]
[1770150573289,139.9684,100.14,100.04,140.1022]
[1770150574189,8.9995,100.12,100.04,140.1022]
[1770150574585,8.9995,100.12,100.02,140.124]
[1770150574586,139.9931,100.12,100.02,140.124]
[1770150574787,140.0076,100.11,100.01,148.44095105]
[1770150575393,9.0013,100.1,100.03,9.0075]
[1770150575686,148.28535105,100.13,100.03,140.1158]
[1770150575892,8.9996,100.12,100.05,9.0057]
[1770150576286,1.7380013,100.21,100.11,148.31105105]
[1770150576591,139.786,100.27,100.16,139.9354]
[1770150576790,148.06385105,100.29,100.18,139.9005]
[1770150577090,150.47922695,100.29,100.19,148.8865]
[1770150577293,1.73652695,100.29,100.2,139.8803]
[1770150577483,8.9837,100.3,100.21,8.9909]
[1770150577680,8.9837,100.3,100.16,139.9285]
[1770150577681,139.7849,100.27,100.16,139.9285]
[1770150577891,139.8115,100.25,100.15,148.24645105]
[1770150578087,139.8261,100.24,100.15,8.9963]
[1770150578285,139.8115,100.25,100.15,8.9963]
[1770150578491,148.10355105,100.26,100.15,148.9451]
[1770150578885,8.9878,100.25,100.16,148.932]
[1770150579189,148.10355105,100.26,100.16,148.932]
[1770150579190,139.7976,100.26,100.16,148.932]
[1770150580586,148.14585105,100.23,100.14,8.9976]
[1770150580783,148.14585105,100.23,100.12,139.9791]
[1770150580983,139.8536,100.22,100.12,139.9791]
[1770150581385,8.30595105,100.23,100.13,139.9777]
[1770150581781,139.8567,100.22,100.12,139.9791]
[1770150581980,8.9911,100.22,100.13,8.9977]
[1770150582187,8.9911,100.22,100.13,148.9724]
[1770150583991,8.9911,100.22,100.14,8.9974]
[1770150584185,8.9911,100.22,100.12,139.9791]
[1770150584186,157.13712158,100.22,100.12,139.9791]
[1770150584386,17.28222158,100.22,100.12,139.9791]
[1770150585395,17.28222158,100.22,100.13,8.9983]
[1770150585890,8.9917,100.21,100.13,8.9983]
[1770150587397,8.9917,100.21,100.11,139.9951]
[1770150587398,8.9924,100.2,100.11,139.9951]
[1770150588297,148.17332158,100.2,100.09,140.027]
[1770150588697,398.64,100.21,100.12,139.9926]
[1770150589596,8.9926,100.2,100.13,8.9984]
[1770150589989,8.9926,100.2,100.11,140.0063]
[1770150589990,8.29112158,100.2,100.1,140.0164]
[1770150590191,8.29112158,100.2,100.11,2.49856782]
[1770150590395,148.17922158,100.2,100.1,140.0164]
[1770150590597,148.17922158,100.2,100.11,2.49878134]
[1770150590799,148.17922158,100.2,100.1,140.0164]
[1770150590999,148.17922158,100.2,100.11,2.49881239]
[1770150591190,148.17922158,100.2,100.1,140.0164]
[1770150591497,139.9024,100.19,100.11,2.49881239]
[1770150591701,148.20492158,100.18,100.06,148.35452158]
[1770150591894,148.20492158,100.18,100.08,2.49946467]
[1770150592092,538.5155,100.19,100.09,2.49946467]
[1770150592295,139.9117,100.18,100.09,2.49946467]
[1770150592497,148.21492158,100.17,100.06,140.0634]
[1770150592688,148.21492158,100.17,100.07,2.49948921]
[1770150592890,148.21492158,100.17,100.08,2.49948921]
[1770150593094,139.9378,100.16,100.09,2.49948921]
[1770150593398,139.9378,100.16,100.06,140.0634]
[1770150593594,139.9378,100.16,100.07,2.49950953]
[1770150593787,139.9378,100.16,100.08,2.49950953]
[1770150593990,139.9378,100.16,100.09,2.49950953]
[1770150594196,8.9978,100.14,100.07,9.004]
[1770150594400,8.9978,100.14,100.08,2.49953069]
[1770150594594,8.9978,100.14,100.07,9.004]
[1770150594797,8.9986,100.13,100.08,2.49973569]
[1770150594997,8.9986,100.13,100.05,9.0052]
[1770150595199,8.9986,100.13,100.06,2.49974258]
[1770150595399,8.9986,100.13,100.04,140.091]
[1770150595400,148.24342158,100.15,100.07,2.49974258]
[1770150595598,148.24342158,100.15,100.08,2.49974258]
[1770150595795,538.5978,100.16,100.06,140.0765]
[1770150595999,139.9549,100.15,100.07,2.49969355]
[1770150596200,538.5978,100.16,100.08,2.49969355]
[1770150596393,139.9378,100.16,100.09,2.4996953]
[1770150596600,139.9378,100.16,100.06,140.0754]
[1770150596799,139.9378,100.16,100.07,2.49958537]
[1770150597003,139.9527,100.15,100.08,2.49958537]
[1770150597202,139.9527,100.15,100.05,140.088]
[1770150597407,8.9978,100.14,100.07,9.0031]
[1770150597599,8.9978,100.14,100.08,2.4997814]
[1770150597805,8.9978,100.14,100.07,9.0031]
[1770150598004,8.9968,100.15,100.08,11.5027803]
[1770150598307,139.9372,100.16,100.09,2.49960357]
[1770150598503,139.9372,100.16,100.05,148.37912158]
[1770150598706,139.9372,100.16,100.06,2.49977598]
[1770150599006,148.22832158,100.16,100.07,2.49977598]
[1770150599201,148.22832158,100.16,100.08,2.49977598]
[1770150599408,148.22832158,100.16,100.04,140.091]
[1770150599409,279.9232,100.15,100.04,140.091]
[1770150599609,279.9232,100.15,100.05,2.49998873]
[1770150599807,279.9232,100.15,100.06,2.49998873]
[1770150600006,279.9232,100.15,100.07,2.49998873]
[1770150600202,8.29112158,100.16,100.08,2.49998873]
[1770150600509,139.9793,100.13,100.03,140.1185]
[1770150600805,398.72,100.15,100.05,148.38192158]
[1770150601006,398.72,100.16,100.06,142.57549846]
[1770150601315,407.7159,100.16,100.07,150.85282004]
[1770150601501,139.8951,100.19,100.09,148.32222158]
[1770150601703,148.15702158,100.22,100.11,140.0027]
[1770150601908,148.15702158,100.22,100.12,2.49903425]
[1770150601909,139.8672,100.21,100.12,2.49903425]
[1770150602105,139.8818,100.2,100.13,2.49903425]
[1770150602306,8.9942,100.18,100.14,2.49858085]
[1770150602512,8.9942,100.18,100.09,148.32222158]
[1770150602711,139.8971,100.19,100.1,2.49861063]
[1770150602908,139.8971,100.19,100.11,2.49861063]
[1770150603205,8.29112158,100.2,100.12,2.49861063]
[1770150603409,148.17342158,100.2,100.13,2.49861063]
[1770150603612,8.29112158,100.18,100.14,1.063e-05]
[1770150603808,8.29112158,100.18,100.08,140.0487]
[1770150604013,8.995,100.17,100.1,9.0012]
[1770150604607,8.9964,100.16,100.09,9.0022]
[1770150604813,139.9234,100.17,100.09,9.0022]
[1770150605312,8.9959,100.16,100.09,9.0022]
[1770150606212,139.938,100.16,100.07,9.0032]
[1770150606416,139.9656,100.14,100.04,148.39512158]
[1770150606618,139.9656,100.14,100.04,140.104]
[1770150606823,8.9997,100.12,100.04,149.1098]
[1770150607015,139.9791,100.13,100.03,140.1057]
[1770150607219,538.6751,100.15,100.04,140.1044]
[1770150607625,538.6711,100.15,100.05,148.38152158]
[1770150608023,8.9995,100.13,100.06,9.0049]
[1770150608325,139.9658,100.14,100.03,148.39682158]
[1770150608523,148.25692158,100.14,100.03,148.39682158]
[1770150608920,8.9997,100.12,100.03,148.39682158]
[1770150609121,8.9997,100.12,100.03,157.44604589]
[1770150609320,9.0004,100.11,100.05,9.0057]
[1770150609723,140.0104,100.11,100.02,9.04922431]
[1770150609918,140.0104,100.11,100.01,157.47424589]
[1770150610124,9.0013,100.1,100.03,9.0076]
[1770150610523,9.0023,100.09,100.02,9.0085]
[1770150610720,140.002,100.12,100.02,140.1325]
[1770150611128,140.0105,100.11,100.01,157.47424589]
[1770150611323,140.0219,100.1,100.0,149.19622431]
[1770150611529,140.0105,100.11,100.01,140.1463]
[1770150611931,140.0105,100.11,100.03,9.0076]
[1770150612131,140.002,100.12,100.02,280.2549]
[1770150612528,9.0013,100.1,100.04,9.0066]
[1770150612927,139.9803,100.13,100.03,148.40822158]
[1770150613137,139.9642,100.15,100.06,9.0047]
[1770150613430,139.9642,100.15,100.05,148.37982158]
[1770150613832,8.9976,100.15,100.07,8.29112158]
[1770150614025,139.9347,100.17,100.07,148.35152158]
[1770150614232,139.9204,100.18,100.08,140.0476]
[1770150614428,8.9963,100.16,100.07,157.40074589]
[1770150614629,8.9963,100.16,100.07,148.35152158]
[1770150614829,8.9963,100.16,100.08,140.048]
[1770150615331,8.9963,100.16,100.08,140.0481]
[1770150615526,8.9963,100.16,100.09,2.49901953]
[1770150615727,8.9963,100.16,100.1,2.49901953]
[1770150615929,8.9963,100.16,100.11,2.49901953]
[1770150616129,8.9969,100.15,100.12,1.953e-05]
[1770150616330,8.9969,100.15,100.09,9.0022]
[1770150616728,8.996,100.16,100.1,9.0013]
[1770150616928,8.996,100.16,100.08,140.0485]
[1770150617325,8.9968,100.15,100.07,149.11192431]
[1770150617536,139.9204,100.18,100.08,140.0488]
[1770150617734,538.6732,100.2,100.08,140.0488]
[1770150617735,538.6732,100.2,100.1,140.0167]
[1770150618033,8.9941,100.19,100.13,8.9985]
[1770150618233,8.9941,100.19,100.11,148.29452158]
[1770150619036,8.9943,100.18,100.09,157.37434589]
[1770150619236,139.912,100.18,100.09,17.34034589]
[1770150619535,8.996,100.16,100.1,9.0013]
[1770150619730,139.9394,100.16,100.06,149.11292431]
[1770150619933,139.9522,100.15,100.05,149.12642431]
[1770150620125,8.9977,100.14,100.07,9.0039]
[1770150620325,538.6835,100.17,100.07,9.0039]
[1770150620326,538.6835,100.17,100.07,140.0599]
[1770150620533,8.29112158,100.18,100.09,140.0343]
[1770150620730,8.9947,100.18,100.11,9.0002]
[1770150621132,8.9947,100.18,100.09,140.0343]
[1770150621133,279.8297,100.18,100.09,9.0015]
[1770150621332,139.9276,100.17,100.07,149.11192431]
[1770150621725,8.9969,100.15,100.08,9.0029]
[1770150622331,8.9958,100.17,100.08,140.0483]
[1770150622635,139.879,100.21,100.08,140.0483]
[1770150622636,139.8859,100.2,100.1,140.0185]
[1770150622837,8.9916,100.21,100.13,8.9978]
[1770150623035,148.15732158,100.22,100.13,8.9978]
[1770150623232,139.8662,100.22,100.13,8.9978]
[1770150623637,148.09762158,100.26,100.15,139.9376]
[1770150623935,139.812,100.25,100.15,148.99542431]
[1770150624333,8.9885,100.25,100.16,8.9957]
[1770150625628,139.8268,100.24,100.15,9.04922431]
[1770150626036,8.29112158,100.23,100.13,149.02782431]
[1770150626240,139.8121,100.25,100.16,8.9957]
[1770150626537,8.29112158,100.26,100.16,139.9345]
[1770150626729,139.7804,100.28,100.19,8.993]
[1770150627135,139.7862,100.27,100.17,157.26094589]
[1770150627335,139.7862,100.27,100.16,139.9345]
[1770150627336,8.9879,100.25,100.16,148.98372431]
[1770150627641,139.8129,100.25,100.15,139.9506]
[1770150627840,148.8011,100.25,100.17,8.9949]
[1770150628140,139.8113,100.25,100.15,148.24172158]
[1770150628534,8.9897,100.23,100.16,8.9958]
[1770150629040,287.90422158,100.26,100.16,139.9367]
[1770150629234,538.4004,100.28,100.18,139.9063]
[1770150629435,538.4004,100.28,100.2,8.9921]
[1770150629642,398.62,100.28,100.2,8.9921]
[1770150629936,149.77588861,100.3,100.2,8.9921]
[1770150630135,548.37588861,100.3,100.2,8.9921]
[1770150630339,408.62738861,100.3,100.19,139.8918]
[1770150630535,546.63592158,100.3,100.19,139.8918]
[1770150630930,139.7577,100.29,100.19,139.8918]
[1770150631136,139.7577,100.29,100.17,148.96902431]
[1770150631435,139.5881,100.42,100.29,139.7547]
[1770150631634,279.1712,100.42,100.31,148.01712158]
[1770150631940,139.5331,100.45,100.34,139.6822]
[1770150632137,139.5331,100.45,100.35,139.6715]
[1770150632338,279.1232,100.43,100.32,139.7021]
[1770150632542,139.5899,100.41,100.3,139.7291]
[1770150632840,546.37202158,100.42,100.26,139.7857]
[1770150632841,8.29112158,100.35,100.26,139.7857]
[1770150633234,8.29112158,100.34,100.26,139.7962]
[1770150633439,8.29112158,100.35,100.27,139.7827]
[1770150633736,8.29112158,100.33,100.25,139.8112]
[1770150633939,8.29112158,100.33,100.24,139.8243]
[1770150634138,139.6149,100.4,100.27,139.7801]
[1770150634337,139.6582,100.36,100.26,139.795]
[1770150634539,147.93552158,100.37,100.27,139.7811]
[1770150634734,8.29112158,100.35,100.26,139.795]
[1770150634939,148.6044,100.39,100.26,139.795]
[1770150634940,8.29112158,100.45,100.36,139.6515]
[1770150635138,8.29112158,100.45,100.39,139.6154]
[1770150635334,8.29112158,100.45,100.37,139.6366]
[1770150635540,8.29112158,100.47,100.38,139.6284]
[1770150635833,8.29112158,100.47,100.34,139.6752]
[1770150635834,139.5675,100.43,100.32,139.7002]
[1770150636036,139.5195,100.46,100.35,139.6632]
[1770150636237,8.29112158,100.45,100.37,139.6382]
[1770150636435,139.5012,100.48,100.38,139.6302]
[1770150636436,8.29112158,100.47,100.38,139.6302]
[1770150636641,139.5012,100.48,100.37,139.6439]